[Event "WYCC 2018 G16"]
[Site "Halkidiki"]
[Date "2018.10.26"]
[Round "7"]
[White "Hercog, Nusa"]
[Black "Yurasova, Daria"]
[Result "0-1"]
[ECO "D21"]
[WhiteElo "2017"]
[BlackElo "2193"]
[Annotator "NA"]
[PlyCount "76"]
[EventDate "2018.10.20"]
[EventType "swiss"]
[EventCountry "GRE"]
[SourceTitle "playchess.com"]
[Source "ChessBase"]
[SourceQuality "1"]
[TimeControl "40/5400+30:1800+30"]

1. d4 {[%emt 0:00:00]} d5 {[%emt 0:00:00]} 2. c4 {[%emt 0:00:00]} dxc4 {[%emt 0:00:00]} 3. Nf3 {[%emt 0:00:00]} a6 {[%emt 0:00:04]} 4. e3 {[%emt 0:00:03]} Nf6 {[%emt 0:00:09]} 5. Bxc4 {[%emt 0:00:12]} b5 {[%emt 0:00:09]} 6. Bd3 {[%emt 0:00:27]} e6 {[%emt 0:00:32]} 7. O-O {[%emt 0:00:36]} Be7 {[%emt 0:00:25]} 8. e4 {[%emt 0:05:04]} Nbd7 {[%emt 0:04:51]} 9. Qe2 {[%emt 0:04:05]} c5 {[%emt 0:02:57]} 10. Nbd2 {[%emt 0:15:36]} cxd4 {[%emt 0:11:16]} 11. e5 {[%emt 0:00:20]} Nd5 {[%emt 0:00:06]} 12. Nb3 {[%emt 0:00:54]} O-O {[%emt 0:12:43]} 13. Nbxd4 {[%emt 0:06:09]} Bb7 {[%emt 0:04:00]} 14. Bd2 {[%emt 0:06:55]} Qb6 {[%emt 0:05:21]} 15. Nb3 {[%emt 0:02:59]} Rac8 {[%emt 0:07:26]} 16. Rac1 {[%emt 0:04:08]} Qa7 {[%emt 0:12:14]} 17. Ng5 {[%emt 0:09:53]} h6 {[%emt 0:06:07]} 18. Nf3 {[%emt 0:00:42]} Nb4 {[%emt 0:00:39]} 19. Bxb4 {[%emt 0:07:42]} Bxb4 {[%emt 0:00:01]} 20. Bb1 {[%emt 0:02:34]} Rfd8 {[%emt 0:02:51]} 21. Rxc8 {[%emt 0:03:23]} Rxc8 {[%emt 0:00:17]} 22. Qd3 {[%emt 0:00:43]} Nf8 {[%emt 0:00:02]} 23. Rd1 {[%emt 0:05:51]} Bd5 {[%emt 0:02:42]} 24. Nbd4 {[%emt 0:03:37]} Bc5 {[%emt 0:01:56]} 25. Qe2 {[%emt 0:04:10]} Qb7 {[%emt 0:04:18]} 26. Qf1 {[%emt 0:02:49]} Bb6 {[%emt 0:04:16]} 27. b3 {[%emt 0:01:39]} Rd8 {[%emt 0:00:26]} 28. Bc2 {[%emt 0:01:09]} Qc7 {[%emt 0:00:46]} 29. Qe2 {[%emt 0:01:11]} Qc5 {[%emt 0:04:36]} 30. Rc1 {[%emt 0:03:35]} Qa3 {[%emt 0:00:58]} 31. Rd1 {[%emt 0:00:47]} Kh8 {[%emt 0:02:56]} 32. Bb1 {[%emt 0:01:41]} Qc5 {[%emt 0:02:00]} 33. Bc2 {[%emt 0:02:19]} Qc3 {[%emt 0:02:35]} 34. h3 {[%emt 0:01:39]} Qc7 {[%emt 0:04:54]} 35. Kh1 {[%emt 0:02:36]} Qa7 {[%emt 0:00:44]} 36. Kg1 {[%emt 0:00:41]} Ba8 {[%emt 0:01:15]} 37. Qe3 {[%emt 0:01:44]} Bxf3 {[%emt 0:00:24]} 38. Nxf3 {[%emt 0:00:35]} Rxd1+ {[%emt 0:00:11]} 0-1

[Event "WYCC 2018 G16"]
[Site "Halkidiki"]
[Date "2018.10.26"]
[Round "7"]
[White "Bogdanic, Katarina"]
[Black "Golsta, Ramona"]
[Result "1-0"]
[ECO "A13"]
[WhiteElo "2014"]
[BlackElo "1681"]
[Annotator "NA"]
[PlyCount "45"]
[EventDate "2018.10.20"]
[EventType "swiss"]
[EventCountry "GRE"]
[SourceTitle "playchess.com"]
[Source "ChessBase"]
[SourceQuality "1"]
[TimeControl "40/5400+30:1800+30"]

1. Nf3 {[%emt 0:00:00]} d5 {[%emt 0:00:00]} 2. c4 {[%emt 0:00:00]} e6 {[%emt 0:00:17]} 3. g3 {[%emt 0:00:00]} d4 {[%emt 0:00:25]} 4. Bg2 {[%emt 0:00:32]} c5 {[%emt 0:00:26]} 5. d3 {[%emt 0:00:18]} Nc6 {[%emt 0:01:31]} 6. O-O {[%emt 0:01:03]} Nf6 {[%emt 0:01:17]} 7. e3 {[%emt 0:03:38]} Be7 {[%emt 0:00:54]} 8. exd4 {[%emt 0:02:03]} cxd4 {[%emt 0:00:18]} 9. Re1 {[%emt 0:01:51]} O-O {[%emt 0:02:21]} 10. Nbd2 {[%emt 0:13:05]} h6 {[%emt 0:01:57]} 11. Ne5 {[%emt 0:02:36]} Nxe5 {[%emt 0:05:26]} 12. Rxe5 {[%emt 0:00:08]} Qd6 {[%emt 0:00:53]} 13. Rb5 {[%emt 0:09:38]} Nd7 {[%emt 0:05:36]} 14. Nf3 {[%emt 0:07:08]} f6 {[%emt 0:04:37]} 15. Bd2 {[%emt 0:03:20]} b6 {[%emt 0:06:02]} 16. Nh4 {[%emt 0:07:26]} Ba6 {[%emt 0:05:46]} 17. Rh5 {[%emt 0:01:05]} f5 {[%emt 0:05:16]} 18. Bf4 {[%emt 0:04:23]} Qc5 {[%emt 0:05:00]} 19. Qe2 {[%emt 0:03:34]} Nf6 {[%emt 0:13:22]} 20. Qxe6+ {[%emt 0:01:01]} Kh7 {[%emt 0:03:07]} 21. Rxf5 {[%emt 0:02:07]} Bc8 {[%emt 0:01:20]} 22. Rxc5 {[%emt 0:01:41]} Bxe6 {[%emt 0:00:09]} 23. Re5 {[%emt 0:00:17]} 1-0

[Event "WYCC 2018 G16"]
[Site "Halkidiki"]
[Date "2018.10.26"]
[Round "7"]
[White "Duson, Robin"]
[Black "Ouellet, Maili-Jade"]
[Result "0-1"]
[ECO "D31"]
[WhiteElo "1999"]
[BlackElo "2122"]
[Annotator "NA"]
[PlyCount "66"]
[EventDate "2018.10.20"]
[EventType "swiss"]
[EventCountry "GRE"]
[SourceTitle "playchess.com"]
[Source "ChessBase"]
[SourceQuality "1"]
[TimeControl "40/5400+30:1800+30"]

1. d4 {[%emt 0:00:00]} d5 {[%emt 0:00:00]} 2. c4 {[%emt 0:00:00]} e6 {[%emt 0:00:00]} 3. Nc3 {[%emt 0:00:00]} c6 {[%emt 0:00:00]} 4. Nf3 {[%emt 0:02:13]} dxc4 {[%emt 0:00:00]} 5. a4 {[%emt 0:02:59]} Bb4 {[%emt 0:00:00]} 6. e3 {[%emt 0:00:29]} b5 {[%emt 0:00:00]} 7. Bd2 {[%emt 0:01:55]} a5 {[%emt 0:00:07]} 8. axb5 {[%emt 0:04:07]} Bxc3 {[%emt 0:00:06]} 9. Bxc3 {[%emt 0:00:44]} cxb5 {[%emt 0:00:08]} 10. b3 {[%emt 0:02:14]} Bb7 {[%emt 0:00:15]} 11. bxc4 {[%emt 0:01:38]} b4 {[%emt 0:00:04]} 12. Bb2 $11 {[%emt 0:04:54] LiveBook: 724 Games} Nf6 {[%emt 0:00:18]} 13. Be2 {[%emt 0:04:19]} O-O {[%emt 0:00:08]} 14. O-O {[%emt 0:01:15]} Nbd7 {[%emt 0:00:17]} 15. Ne5 {[%emt 0:06:33]} Nxe5 {[%emt 0:14:31]} 16. dxe5 {[%emt 0:00:07]} Ne4 {[%emt 0:00:18]} 17. Bd4 {[%emt 0:12:46]} Qc7 {[%emt 0:12:10]} 18. Qc2 {[%emt 0:07:39]} Nc5 {[%emt 0:05:39]} 19. Rfd1 {[%emt 0:01:46]} Rfb8 {[%emt 0:04:04]} 20. Qb2 {[%emt 0:07:10]} Nd7 {[%emt 0:15:08]} 21. Rd2 {[%emt 0:08:36]} Bc6 {[%emt 0:01:31]} 22. Bd1 {[%emt 0:02:52]} a4 {[%emt 0:02:37]} 23. f4 {[%emt 0:01:42]} Qa5 {[%emt 0:02:17]} 24. Qc1 {[%emt 0:04:56]} Nc5 {[%emt 0:03:29]} 25. Bxc5 {[%emt 0:02:21]} Qxc5 {[%emt 0:00:07]} 26. Kf2 {[%emt 0:00:50]} g6 {[%emt 0:11:51]} 27. Rd6 {[%emt 0:05:25]} b3 {[%emt 0:02:43]} 28. Qc3 {[%emt 0:03:34]} b2 {[%emt 0:00:57]} 29. Rb1 {[%emt 0:01:16]} a3 {[%emt 0:00:13]} 30. Rxc6 {[%emt 0:01:18]} Qxc6 {[%emt 0:00:16]} 31. Bf3 {[%emt 0:00:09]} Qa6 {[%emt 0:00:53]} 32. Bxa8 {[%emt 0:01:01]} Qxa8 {[%emt 0:00:07]} 33. g3 {[%emt 0:02:33]} a2 {[%emt 0:00:10]} 0-1

[Event "WYCC 2018 G16"]
[Site "Halkidiki"]
[Date "2018.10.26"]
[Round "7"]
[White "Aciu, Malina-Andreea"]
[Black "Bach, Ngoc Thuy Duong"]
[Result "1/2-1/2"]
[ECO "B92"]
[WhiteElo "1976"]
[BlackElo "2161"]
[Annotator "NA"]
[PlyCount "59"]
[EventDate "2018.10.20"]
[EventType "swiss"]
[EventCountry "GRE"]
[SourceTitle "playchess.com"]
[Source "ChessBase"]
[SourceQuality "1"]
[TimeControl "40/5400+30:1800+30"]

1. e4 {[%emt 0:00:00]} c5 {[%emt 0:00:00]} 2. Nf3 {[%emt 0:00:00]} d6 {[%emt 0:00:00]} 3. d4 {[%emt 0:00:00]} cxd4 {[%emt 0:00:00]} 4. Nxd4 {[%emt 0:00:00]} Nf6 {[%emt 0:00:00]} 5. Nc3 {[%emt 0:00:00]} a6 {[%emt 0:00:00]} 6. Be2 {[%emt 0:00:00]} e5 {[%emt 0:00:06]} 7. Nf3 {[%emt 0:00:00]} Qc7 {[%emt 0:01:38]} 8. Bg5 {[%emt 0:00:00]} Nbd7 {[%emt 0:00:35]} 9. a4 {[%emt 0:00:27]} b6 {[%emt 0:05:45]} 10. Nd2 {[%emt 0:00:22]} Bb7 {[%emt 0:00:41]} 11. Bc4 {[%emt 0:05:35]} Be7 {[%emt 0:04:11]} 12. O-O {[%emt 0:01:07]} Nf8 {[%emt 0:02:29]} 13. Bxf6 {[%emt 0:08:47]} Bxf6 {[%emt 0:00:07]} 14. Bd5 {[%emt 0:05:26]} Be7 {[%emt 0:00:52]} 15. Bxb7 {[%emt 0:05:04]} Qxb7 {[%emt 0:00:05]} 16. Nc4 {[%emt 0:00:08]} Qc6 {[%emt 0:00:59]} 17. b3 {[%emt 0:04:25]} Rb8 {[%emt 0:05:31]} 18. Nd5 {[%emt 0:01:32]} Ng6 {[%emt 0:02:09]} 19. Re1 {[%emt 0:11:46]} Qc5 {[%emt 0:07:18]} 20. Qd3 {[%emt 0:07:35]} b5 {[%emt 0:08:56]} 21. axb5 {[%emt 0:03:00]} axb5 {[%emt 0:00:06]} 22. Nce3 {[%emt 0:00:20]} O-O {[%emt 0:26:11]} 23. Nf5 {[%emt 0:02:37]} Rfe8 {[%emt 0:04:39]} 24. Ndxe7+ {[%emt 0:16:17]} Nxe7 {[%emt 0:00:25]} 25. Qxd6 {[%emt 0:00:39]} Qxd6 {[%emt 0:00:07]} 26. Nxd6 {[%emt 0:00:03]} Red8 {[%emt 0:00:56]} 27. Red1 {[%emt 0:00:05]} Nc6 {[%emt 0:01:51]} 28. Nf5 {[%emt 0:03:57]} g6 {[%emt 0:03:16]} 29. Ne3 {[%emt 0:00:54]} Nd4 {[%emt 0:00:05]} 30. Ra7 {[%emt 0:13:51]} 1/2-1/2

[Event "WYCC 2018 G16"]
[Site "Halkidiki"]
[Date "2018.10.26"]
[Round "7"]
[White "Djidjeli, Sarah"]
[Black "Puppi Lazo, Stephanie Beatriz"]
[Result "1/2-1/2"]
[ECO "B90"]
[WhiteElo "1952"]
[BlackElo "1847"]
[Annotator "NA"]
[PlyCount "117"]
[EventDate "2018.10.20"]
[EventType "swiss"]
[EventCountry "GRE"]
[SourceTitle "playchess.com"]
[Source "ChessBase"]
[SourceQuality "1"]
[TimeControl "40/5400+30:1800+30"]

1. e4 {[%emt 0:00:00]} c5 {[%emt 0:00:00]} 2. Nf3 {[%emt 0:00:00]} d6 {[%emt 0:00:00]} 3. d4 {[%emt 0:00:00]} cxd4 {[%emt 0:00:00]} 4. Nxd4 {[%emt 0:00:00]} Nf6 {[%emt 0:00:00]} 5. Nc3 {[%emt 0:00:00]} a6 {[%emt 0:00:00]} 6. Nb3 {[%emt 0:00:00]} e5 {[%emt 0:12:38]} 7. Bg5 {[%emt 0:00:05]} Be7 {[%emt 0:00:05]} 8. Bxf6 {[%emt 0:05:20]} Bxf6 {[%emt 0:00:20]} 9. Qd3 {[%emt 0:00:08]} Be6 {[%emt 0:08:42]} 10. Rd1 {[%emt 0:05:33]} Nc6 {[%emt 0:14:54]} 11. Nd5 {[%emt 0:22:47]} O-O {[%emt 0:04:08]} 12. c3 {[%emt 0:01:55]} Rc8 {[%emt 0:02:22]} 13. Be2 {[%emt 0:00:40]} Bg5 {[%emt 0:01:48]} 14. O-O {[%emt 0:07:02]} Ne7 {[%emt 0:10:30]} 15. Nxe7+ {[%emt 0:03:22]} Bxe7 {[%emt 0:00:07]} 16. Qd2 {[%emt 0:03:37]} Qb6 {[%emt 0:05:46]} 17. Nc1 {[%emt 0:02:35]} Rfd8 {[%emt 0:03:22]} 18. Bf3 {[%emt 0:00:40]} a5 {[%emt 0:02:30]} 19. b3 {[%emt 0:01:18]} a4 {[%emt 0:02:28]} 20. c4 {[%emt 0:03:40]} axb3 {[%emt 0:01:33]} 21. axb3 {[%emt 0:00:07]} Ra8 {[%emt 0:01:49]} 22. Rde1 {[%emt 0:07:12]} h6 {[%emt 0:01:21]} 23. Qc2 {[%emt 0:04:39]} Ra3 {[%emt 0:01:33]} 24. Bd1 {[%emt 0:01:12]} Qa5 {[%emt 0:05:55]} 25. Qe2 {[%emt 0:09:06]} b5 {[%emt 0:03:59]} 26. cxb5 {[%emt 0:04:18]} Bd7 {[%emt 0:00:14]} 27. Qf3 {[%emt 0:01:25]} Bxb5 {[%emt 0:00:48]} 28. Be2 {[%emt 0:00:08]} Bg5 {[%emt 0:00:55]} 29. Nd3 {[%emt 0:03:51]} Rxb3 {[%emt 0:00:54]} 30. Rb1 {[%emt 0:00:03]} Rxb1 {[%emt 0:02:44]} 31. Rxb1 {[%emt 0:00:03]} Bc6 {[%emt 0:01:02]} 32. g3 {[%emt 0:00:59]} Qa8 {[%emt 0:00:49]} 33. Rb4 {[%emt 0:00:40]} Bd2 {[%emt 0:00:19]} 34. Rc4 {[%emt 0:05:39]} Rf8 {[%emt 0:00:51]} 35. Nb4 {[%emt 0:01:00]} Bxb4 {[%emt 0:00:34]} 36. Rxb4 {[%emt 0:00:03]} d5 {[%emt 0:00:17]} 37. exd5 {[%emt 0:01:14]} Bxd5 {[%emt 0:00:06]} 38. Qf5 {[%emt 0:00:11]} Qc6 {[%emt 0:01:36]} 39. Qxe5 {[%emt 0:02:57]} Bh1 {[%emt 0:01:22]} 40. Bf1 {[%emt 0:00:00]} Bf3 {[%emt 0:00:00]} 41. Rb1 {[%emt 0:02:48]} Qg6 {[%emt 0:05:16]} 42. Rc1 {[%emt 0:01:37]} h5 {[%emt 0:00:40]} 43. Bg2 {[%emt 0:02:45]} Bxg2 {[%emt 0:02:05]} 44. Kxg2 {[%emt 0:00:03]} h4 {[%emt 0:00:07]} 45. Rc4 {[%emt 0:02:55]} hxg3 {[%emt 0:00:43]} 46. hxg3 {[%emt 0:00:30]} Rd8 {[%emt 0:03:47]} 47. Qa5 {[%emt 0:12:12]} Re8 {[%emt 0:02:55]} 48. Qd5 {[%emt 0:01:23]} Qe6 {[%emt 0:07:01]} 49. Qd3 {[%emt 0:01:07]} Qa6 {[%emt 0:02:38]} 50. Qd5 {[%emt 0:01:26]} Qa2 {[%emt 0:02:32]} 51. Qc6 {[%emt 0:01:57]} Qa8 {[%emt 0:01:32]} 52. Qxa8 {[%emt 0:00:25]} Rxa8 {[%emt 0:00:05]} 53. Rc7 {[%emt 0:00:01]} g6 {[%emt 0:00:27]} 54. Kf3 {[%emt 0:00:22]} Ra4 {[%emt 0:00:04]} 55. Ke3 {[%emt 0:00:20]} Kg7 {[%emt 0:00:06]} 56. Rc6 {[%emt 0:00:24]} Kh6 {[%emt 0:01:42]} 57. Kf3 {[%emt 0:01:11]} Kg5 {[%emt 0:00:13]} 58. Rc5+ {[%emt 0:00:41]} f5 {[%emt 0:00:28]} 59. Rc3 {[%emt 0:00:23]} 1/2-1/2

[Event "WYCC 2018 G16"]
[Site "Halkidiki"]
[Date "2018.10.26"]
[Round "7"]
[White "De Silva, Tenara"]
[Black "Zhang, Cindy"]
[Result "1-0"]
[ECO "B36"]
[WhiteElo "1927"]
[BlackElo "1790"]
[Annotator "NA"]
[PlyCount "87"]
[EventDate "2018.10.20"]
[EventType "swiss"]
[EventCountry "GRE"]
[SourceTitle "playchess.com"]
[Source "ChessBase"]
[SourceQuality "1"]
[TimeControl "40/5400+30:1800+30"]

1. e4 {[%emt 0:00:00]} c5 {[%emt 0:00:00]} 2. Nf3 {[%emt 0:00:00]} g6 {[%emt 0:00:00]} 3. d4 {[%emt 0:00:00]} cxd4 {[%emt 0:00:00]} 4. Nxd4 {[%emt 0:00:05]} Nc6 {[%emt 0:00:04]} 5. c4 {[%emt 0:00:23]} Nf6 {[%emt 0:00:26]} 6. Nc3 {[%emt 0:00:36]} d6 {[%emt 0:00:41]} 7. Be2 {[%emt 0:04:26]} Nxd4 {[%emt 0:00:51]} 8. Qxd4 {[%emt 0:00:28]} Bg7 {[%emt 0:00:27]} 9. Be3 {[%emt 0:00:54]} O-O {[%emt 0:00:41]} 10. Qd2 {[%emt 0:02:00]} Be6 {[%emt 0:01:25]} 11. f3 {[%emt 0:00:24]} Qa5 {[%emt 0:01:21]} 12. O-O {[%emt 0:04:56]} Rfc8 {[%emt 0:01:35]} 13. b3 {[%emt 0:09:41]} a6 {[%emt 0:03:07]} 14. Rac1 {[%emt 0:00:19]} b5 {[%emt 0:03:58]} 15. Nd5 {[%emt 0:07:29]} Qxd2 {[%emt 0:02:04]} 16. Bxd2 {[%emt 0:01:22]} Nxd5 {[%emt 0:03:14]} 17. cxd5 {[%emt 0:02:22]} Bd7 {[%emt 0:04:07]} 18. Rxc8+ {[%emt 0:00:27]} Rxc8 {[%emt 0:00:10]} 19. Rc1 {[%emt 0:00:06]} Rxc1+ {[%emt 0:05:30]} 20. Bxc1 {[%emt 0:00:09]} Bd4+ {[%emt 0:07:52]} 21. Kf1 {[%emt 0:00:09]} f5 {[%emt 0:00:21]} 22. Bg5 {[%emt 0:02:30]} Kf7 {[%emt 0:01:02]} 23. Ke1 {[%emt 0:00:47]} fxe4 {[%emt 0:03:03]} 24. fxe4 {[%emt 0:00:10]} a5 {[%emt 0:11:41]} 25. Kd2 {[%emt 0:02:56]} b4 {[%emt 0:00:55]} 26. Ba6 {[%emt 0:09:24]} Bb6 {[%emt 0:19:08]} 27. Kd3 {[%emt 0:06:01]} Bg1 {[%emt 0:02:16]} 28. h3 {[%emt 0:01:46]} Bb6 {[%emt 0:00:30]} 29. Kc4 {[%emt 0:01:21]} Bf2 {[%emt 0:01:17]} 30. Bb7 {[%emt 0:01:10]} Bb6 {[%emt 0:06:35]} 31. Bc6 {[%emt 0:02:26]} Bc8 {[%emt 0:05:23]} 32. Kb5 {[%emt 0:00:09]} Bd4 {[%emt 0:05:55]} 33. Kxa5 {[%emt 0:00:50]} Bc3 {[%emt 0:00:07]} 34. Bb5 {[%emt 0:02:21]} e6 {[%emt 0:03:12]} 35. Bc4 {[%emt 0:00:46]} exd5 {[%emt 0:01:49]} 36. Bxd5+ {[%emt 0:00:07]} Be6 {[%emt 0:02:57]} 37. Kb6 {[%emt 0:00:29]} Bxd5 {[%emt 0:02:22]} 38. exd5 {[%emt 0:00:05]} Bd4+ {[%emt 0:01:28]} 39. Kc6 {[%emt 0:00:26]} Bc5 {[%emt 0:01:14]} 40. Kd7 {[%emt 0:00:00]} Kg7 {[%emt 0:00:00]} 41. Be7 {[%emt 0:00:18]} Kf7 {[%emt 0:00:53]} 42. Bxd6 {[%emt 0:00:03]} Bxd6 {[%emt 0:00:59]} 43. Kxd6 {[%emt 0:00:04]} Ke8 {[%emt 0:00:05]} 44. Kc7 1-0

[Event "WYCC 2018 G16"]
[Site "Halkidiki"]
[Date "2018.10.26"]
[Round "7"]
[White "Hajiyeva, Laman"]
[Black "Bulatova, Kamaliya"]
[Result "0-1"]
[ECO "E47"]
[WhiteElo "1916"]
[BlackElo "2108"]
[Annotator "NA"]
[PlyCount "74"]
[EventDate "2018.10.20"]
[EventType "swiss"]
[EventCountry "GRE"]
[SourceTitle "playchess.com"]
[Source "ChessBase"]
[SourceQuality "1"]
[TimeControl "40/5400+30:1800+30"]

1. d4 {[%emt 0:00:00]} Nf6 {[%emt 0:00:00]} 2. c4 {[%emt 0:00:00]} e6 {[%emt 0:00:00]} 3. Nc3 {[%emt 0:00:00]} Bb4 {[%emt 0:00:00]} 4. e3 {[%emt 0:00:00]} O-O {[%emt 0:00:00]} 5. Bd3 {[%emt 0:00:00]} c5 {[%emt 0:00:00]} 6. Nge2 {[%emt 0:00:00]} d5 {[%emt 0:01:43]} 7. a3 {[%emt 0:00:32]} Bxc3+ {[%emt 0:00:10]} 8. bxc3 {[%emt 0:00:07]} dxc4 {[%emt 0:00:13]} 9. Bxc4 {[%emt 0:00:19]} Qc7 {[%emt 0:00:04]} 10. Bd3 {[%emt 0:01:12]} e5 {[%emt 0:00:26]} 11. e4 {[%emt 0:07:48]} cxd4 {[%emt 0:17:38]} 12. cxd4 {[%emt 0:00:13]} exd4 {[%emt 0:00:18]} 13. O-O {[%emt 0:03:46]} Nc6 {[%emt 0:01:41]} 14. Bb2 {[%emt 0:03:10]} Ng4 {[%emt 0:06:44]} 15. Ng3 {[%emt 0:07:08]} h5 {[%emt 0:06:45]} 16. h3 {[%emt 0:12:27]} h4 {[%emt 0:03:27]} 17. hxg4 {[%emt 0:00:14]} hxg3 {[%emt 0:00:07]} 18. f4 {[%emt 0:02:19]} Qb6 {[%emt 0:09:13]} 19. Rb1 {[%emt 0:05:07]} Ne5 {[%emt 0:03:39]} 20. g5 {[%emt 0:18:59]} Bg4 {[%emt 0:00:44]} 21. Rf3 {[%emt 0:09:48]} Qg6 {[%emt 0:05:12]} 22. Qe1 {[%emt 0:04:23]} Nxf3+ {[%emt 0:00:39]} 23. gxf3 {[%emt 0:00:05]} Bxf3 {[%emt 0:00:06]} 24. Qxg3 {[%emt 0:02:35]} Bxe4 {[%emt 0:00:16]} 25. Bxe4 {[%emt 0:01:07]} Qxe4 {[%emt 0:00:04]} 26. Re1 {[%emt 0:00:13]} Qc2 {[%emt 0:05:19]} 27. Bxd4 {[%emt 0:04:50]} Rfd8 {[%emt 0:01:07]} 28. Qe3 {[%emt 0:03:33]} Qc4 {[%emt 0:03:45]} 29. Bb2 {[%emt 0:04:43]} Qb5 {[%emt 0:02:26]} 30. Qc3 {[%emt 0:05:07]} Qb6+ {[%emt 0:00:15]} 31. Re3 {[%emt 0:01:39]} Qg6 {[%emt 0:00:28]} 32. f5 {[%emt 0:00:46]} Qxg5+ {[%emt 0:01:36]} 33. Rg3 {[%emt 0:00:38]} Rd1+ {[%emt 0:00:04]} 34. Kg2 {[%emt 0:00:35]} Qd2+ {[%emt 0:00:04]} 35. Kh3 {[%emt 0:00:32]} Rh1+ {[%emt 0:01:17]} 36. Kg4 {[%emt 0:00:01]} Qe2+ {[%emt 0:04:32]} 37. Qf3 {[%emt 0:01:48]} Qc4+ {[%emt 0:00:20]} 0-1

[Event "WYCC 2018 G16"]
[Site "Halkidiki"]
[Date "2018.10.26"]
[Round "7"]
[White "Kobald, Jacqueline"]
[Black "Simkunaite, Gabija"]
[Result "1/2-1/2"]
[ECO "B19"]
[WhiteElo "1911"]
[BlackElo "1650"]
[Annotator "NA"]
[PlyCount "78"]
[EventDate "2018.10.20"]
[EventType "swiss"]
[EventCountry "GRE"]
[SourceTitle "playchess.com"]
[Source "ChessBase"]
[SourceQuality "1"]
[TimeControl "40/5400+30:1800+30"]

1. e4 {[%emt 0:00:00]} c6 {[%emt 0:00:00]} 2. d4 {[%emt 0:00:00]} d5 {[%emt 0:00:00]} 3. Nc3 {[%emt 0:00:00]} dxe4 {[%emt 0:00:41]} 4. Nxe4 {[%emt 0:00:04]} Bf5 {[%emt 0:00:37]} 5. Ng3 {[%emt 0:00:11]} Bg6 {[%emt 0:00:35]} 6. h4 {[%emt 0:00:41]} h6 {[%emt 0:00:50]} 7. Nf3 {[%emt 0:00:23]} Nd7 {[%emt 0:00:38]} 8. h5 {[%emt 0:00:24]} Bh7 {[%emt 0:00:34]} 9. Bd3 {[%emt 0:01:09]} Bxd3 {[%emt 0:00:45]} 10. Qxd3 {[%emt 0:00:11]} e6 {[%emt 0:00:46]} 11. Bd2 {[%emt 0:01:29]} Ngf6 {[%emt 0:01:11]} 12. O-O-O {[%emt 0:01:03]} Qc7 {[%emt 0:00:56]} 13. Ne4 {[%emt 0:03:15]} Nxe4 {[%emt 0:02:37]} 14. Qxe4 {[%emt 0:00:08]} Nf6 {[%emt 0:00:15]} 15. Qe2 {[%emt 0:02:21]} Bd6 {[%emt 0:01:09]} 16. Ne5 {[%emt 0:06:20]} O-O-O 17. f4 {[%emt 0:04:32]} Kb8 {[%emt 0:09:39]} 18. Kb1 {[%emt 0:05:05]} Rhf8 {[%emt 0:04:50]} 19. g4 {[%emt 0:08:44]} c5 {[%emt 0:11:48]} 20. dxc5 {[%emt 0:06:26]} Bxe5 {[%emt 0:03:41]} 21. fxe5 {[%emt 0:03:11]} Nd7 {[%emt 0:00:45]} 22. c6 {[%emt 0:07:45]} Qxc6 {[%emt 0:03:02]} 23. Ba5 {[%emt 0:04:50]} Nb6 {[%emt 0:01:46]} 24. Bb4 {[%emt 0:01:18]} Rfe8 {[%emt 0:03:31]} 25. Rhf1 {[%emt 0:00:44]} Qc4 {[%emt 0:12:22]} 26. Qxc4 {[%emt 0:09:57]} Nxc4 {[%emt 0:00:06]} 27. b3 {[%emt 0:00:13]} a5 {[%emt 0:08:43]} 28. bxc4 {[%emt 0:11:24]} Rxd1+ {[%emt 0:00:13]} 29. Rxd1 {[%emt 0:00:06]} axb4 {[%emt 0:00:03]} 30. Rd7 {[%emt 0:00:14]} Rf8 {[%emt 0:00:08]} 31. Kb2 {[%emt 0:03:09]} g6 {[%emt 0:01:05]} 32. Kb3 {[%emt 0:05:08]} gxh5 {[%emt 0:01:19]} 33. gxh5 {[%emt 0:00:09]} f5 {[%emt 0:00:32]} 34. exf6 {[%emt 0:00:32]} Rxf6 {[%emt 0:00:08]} 35. Re7 {[%emt 0:01:39]} Rf5 {[%emt 0:01:06]} 36. Rxe6 {[%emt 0:00:20]} Rxh5 {[%emt 0:00:03]} 37. Re7 {[%emt 0:01:30]} Rh2 {[%emt 0:00:27]} 38. Rh7 {[%emt 0:00:08]} h5 {[%emt 0:00:07]} 39. Kxb4 {[%emt 0:08:03]} Rxc2 {[%emt 0:00:07]} 1/2-1/2

[Event "WYCC 2018 G16"]
[Site "Halkidiki"]
[Date "2018.10.26"]
[Round "7"]
[White "Nemcova, Karin"]
[Black "Nestorovic, Katarina"]
[Result "1/2-1/2"]
[ECO "B81"]
[WhiteElo "1888"]
[BlackElo "2015"]
[Annotator "NA"]
[PlyCount "83"]
[EventDate "2018.10.20"]
[EventType "swiss"]
[EventCountry "GRE"]
[SourceTitle "playchess.com"]
[Source "ChessBase"]
[SourceQuality "1"]
[TimeControl "40/5400+30:1800+30"]

1. e4 {[%emt 0:00:00]} c5 {[%emt 0:00:00]} 2. Nf3 {[%emt 0:00:00]} e6 {[%emt 0:00:00]} 3. d4 {[%emt 0:00:00]} cxd4 {[%emt 0:00:00]} 4. Nxd4 {[%emt 0:00:00]} Nf6 $11 {[%emt 0:00:00] LiveBook: 12487 Games} 5. Nc3 {[%emt 0:00:00]} d6 {[%emt 0:00:01]} 6. g4 {[%emt 0:00:03]} Nc6 {[%emt 0:04:18]} 7. g5 {[%emt 0:00:16]} Nd7 {[%emt 0:00:09]} 8. h4 {[%emt 0:00:20]} a6 {[%emt 0:00:52]} 9. Be3 {[%emt 0:00:14]} Qc7 {[%emt 0:03:10]} 10. h5 {[%emt 0:09:20]} b5 {[%emt 0:05:41]} 11. a3 {[%emt 0:00:11]} Bb7 {[%emt 0:03:43]} 12. Qg4 {[%emt 0:03:35]} Nde5 {[%emt 0:05:38]} 13. Qg2 {[%emt 0:01:40]} Nxd4 {[%emt 0:06:48]} 14. Bxd4 {[%emt 0:00:18]} Nc4 {[%emt 0:17:13]} 15. Bxc4 {[%emt 0:09:41]} Qxc4 {[%emt 0:01:27]} 16. O-O-O {[%emt 0:01:07]} e5 {[%emt 0:05:24]} 17. Bb6 {[%emt 0:03:54]} Be7 {[%emt 0:06:13]} 18. Rh3 {[%emt 0:09:03]} a5 {[%emt 0:08:26]} 19. b3 {[%emt 0:03:07]} Qc6 {[%emt 0:09:40]} 20. Nd5 {[%emt 0:00:47]} Rc8 {[%emt 0:07:14]} 21. Rc3 {[%emt 0:01:49]} Qd7 {[%emt 0:00:37]} 22. Rxc8+ {[%emt 0:01:15]} Qxc8 {[%emt 0:02:18]} 23. Bxa5 {[%emt 0:07:23]} Bxd5 {[%emt 0:02:04]} 24. Rxd5 {[%emt 0:06:08]} Qa6 {[%emt 0:01:14]} 25. Bb4 {[%emt 0:00:10]} O-O {[%emt 0:00:30]} 26. g6 {[%emt 0:04:19]} h6 {[%emt 0:07:51]} 27. Kb2 {[%emt 0:04:43]} Qb6 {[%emt 0:01:47]} 28. f3 {[%emt 0:02:01]} Kh8 {[%emt 0:01:04]} 29. gxf7 {[%emt 0:04:23]} Rxf7 {[%emt 0:00:02]} 30. Qg6 {[%emt 0:00:24]} Rxf3 {[%emt 0:00:35]} 31. Qe8+ {[%emt 0:00:14]} Bf8 {[%emt 0:00:33]} 32. Bxd6 {[%emt 0:03:00]} Qf2 {[%emt 0:00:27]} 33. Bxf8 {[%emt 0:00:35]} Rxf8 {[%emt 0:00:06]} 34. Qxe5 {[%emt 0:00:07]} Rc8 {[%emt 0:01:10]} 35. Ka2 {[%emt 0:10:46]} Qxc2+ {[%emt 0:00:37]} 36. Qb2 {[%emt 0:00:04]} Qxe4 {[%emt 0:00:13]} 37. Rd2 {[%emt 0:00:12]} Qf5 {[%emt 0:00:18]} 38. Rg2 {[%emt 0:00:20]} Rg8 {[%emt 0:01:03]} 39. Qe2 {[%emt 0:00:55]} Qc5 {[%emt 0:00:31]} 40. Qg4 {[%emt 0:00:00]} Qc6 {[%emt 0:00:00]} 41. Qg6 {[%emt 0:02:45]} Qd7 {[%emt 0:03:29]} 42. Qg4 {[%emt 0:04:40]} 1/2-1/2